bitfinex-derivatives/quotes_ETHF0:USTF0_20241024
["timestamp","ask_amount","ask_price","bid_price","bid_amount"]
[1729752746237,3.99419,2552.0,2551.9,1.48261438]
[1729752746835,3.6412,2552.0,2551.9,1.48261438]
[1729752747037,3.6412,2552.0,2551.9,1.60527547]
[1729752747837,3.6412,2552.0,2551.9,0.12266109]
[1729752748040,5.12379438,2552.0,2551.9,0.12266109]
[1729752752137,5.12379438,2552.0,2551.9,0.12266295]
[1729752752343,1.91599438,2552.0,2551.9,0.12266295]
[1729752752748,5.12379438,2552.0,2551.9,0.12266295]
[1729752757150,1.91599438,2552.0,2551.9,0.12266295]
[1729752757353,5.12379438,2552.0,2551.9,0.12266295]
[1729752758147,1.91599438,2552.0,2551.9,0.12266295]
[1729752758354,5.12379438,2552.0,2551.9,0.12266295]
[1729752758749,1.91599438,2552.0,2551.9,0.12266295]
[1729752759054,5.12379438,2552.0,2551.9,0.12266295]
[1729752759553,5.12379438,2552.0,2551.9,0.12266591]
[1729752759751,5.12379438,2552.0,2551.8,1.48262438]
[1729752759955,0.4038,2551.9,2551.8,1.48262438]
[1729752760247,8.0621642,2551.9,2551.8,1.80155575]
[1729752760643,8.0621642,2551.9,2551.8,1.44853575]
[1729752760644,3.6116,2551.9,2551.8,1.44853575]
[1729752760848,3.6116,2551.9,2551.8,1.80155575]
[1729752761252,3.6116,2551.9,2551.8,1.48262438]
[1729752761455,3.6116,2551.9,2551.8,1.80155375]
[1729752762954,4.74120438,2551.9,2551.8,0.67194937]
[1729752763145,5.09421438,2551.9,2551.8,0.12266514]
[1729752764057,5.09421438,2551.9,2551.8,0.47568514]
[1729752764453,9.3253305,2551.9,2551.8,0.47568514]
[1729752764653,9.3253305,2551.9,2551.8,0.12266514]
[1729752765755,6.1175305,2551.9,2551.8,0.12266514]
[1729752765952,9.3253305,2551.9,2551.8,0.12266514]
[1729752766154,9.3253305,2551.9,2551.8,0.47568514]
[1729752766359,6.1175305,2551.9,2551.8,0.47568514]
[1729752766648,0.35302,2551.8,2551.4,2.11360438]
[1729752766858,3.2078,2551.6,2551.5,1.48266438]
[1729752767253,3.6115,2551.6,2551.5,1.48266438]
[1729752767451,3.6115,2551.6,2551.1,1.02635403]
[1729752767663,5.52886438,2551.6,2551.4,1.48267438]
[1729752767863,4.0462,2551.6,2551.5,1.48266438]
[1729752768055,3.2078,2551.6,2551.5,1.48266438]
[1729752769960,4.69041438,2552.0,2551.8,0.35302]
[1729752770159,5.09491438,2552.0,2551.8,1.48262438]
[1729752770352,5.09491438,2552.0,2551.9,0.35301]
[1729752770353,4.86915983,2552.0,2551.9,0.35301]
[1729752770961,5.22214983,2552.0,2551.9,0.19625337]
[1729752771160,6.35175421,2552.0,2551.8,0.35301]
[1729752771365,1.12960438,2551.9,2551.8,0.35301]
[1729752771567,1.12960438,2551.9,2551.8,0.54926586]
[1729752772263,1.88709438,2552.0,2551.8,1.67887024]
[1729752772559,1.88709438,2552.0,2551.6,0.8342]
[1729752772560,1.12960438,2551.9,2551.6,0.8342]
[1729752772757,0.4045,2552.0,2551.7,0.5492912]
[1729752772758,1.48262438,2551.8,2551.7,0.5492912]
[1729752772958,1.48262438,2551.8,2551.7,0.1962612]
[1729752773564,1.12960438,2551.8,2551.7,0.1962612]
[1729752773760,1.12960438,2551.8,2551.7,0.5493012]
[1729752773961,1.12960438,2551.8,2551.7,0.35304]
[1729752774161,1.12960438,2551.8,2551.7,0.54930216]
[1729752774965,1.48262438,2551.8,2551.7,0.19626216]
[1729752775665,1.12960438,2551.8,2551.7,0.54930216]
[1729752775868,1.48262438,2551.8,2551.7,0.54930216]
[1729752776365,1.12960438,2551.8,2551.7,0.54930216]
[1729752777160,1.12960438,2551.8,2551.7,0.19626195]
[1729752777161,1.48262438,2551.8,2551.7,0.19626195]
[1729752778569,1.48262438,2551.8,2551.7,0.31892606]
[1729752780164,5.40182438,2551.8,2551.7,0.31892606]
[1729752780364,5.40182438,2551.8,2551.7,0.12266411]
[1729752780365,9.57732109,2551.8,2551.7,0.12266411]
[1729752780769,9.57732109,2551.8,2551.7,0.12267035]
[1729752780960,9.57732109,2551.8,2551.7,0.12267103]
[1729752781266,9.57732109,2551.8,2551.5,3.2078]
[1729752781267,9.22430109,2551.8,2551.5,3.2078]
[1729752781465,1.12960438,2551.6,2551.5,3.56086]
[1729752781675,1.12960438,2551.6,2551.5,3.6835382]
[1729752781868,1.48265438,2551.6,2551.5,3.2078]
[1729752782069,42.70475438,2551.6,2551.5,3.2078]
[1729752782968,0.8751,2551.7,2551.5,3.2078]
[1729752783165,2.00470438,2551.7,2551.6,0.35305]
[1729752783673,6.47338412,2551.7,2551.6,0.35305]
[1729752784968,1.56610438,2551.7,2551.6,0.76635]
[1729752785163,1.56610438,2551.7,2551.6,1.16695]
[1729752785470,1.56610438,2551.7,2551.6,1.2896226]
[1729752785965,1.56610438,2551.7,2551.6,0.1226726]
[1729752786270,1.56610438,2551.7,2551.6,0.4757226]
[1729752786271,6.47894356,2551.7,2551.6,0.4757226]
[1729752786567,6.12590356,2551.7,2551.6,0.4757226]
[1729752786966,6.47894356,2551.7,2551.6,0.4757226]
[1729752787972,6.12590356,2551.7,2551.6,0.4757226]
[1729752788475,6.47894356,2551.7,2551.6,0.4757226]
[1729752790663,4.12099918,2551.7,2551.6,0.35305]
[1729752790867,1.48259438,2552.1,2551.6,5.78479771]
[1729752791164,0.4171,2551.9,2551.8,1.48262438]
[1729752791368,0.4171,2551.9,2551.8,1.8015402]
[1729752791866,0.4171,2551.9,2551.8,1.60528431]
[1729752792374,0.4171,2551.9,2551.8,1.60528407]
[1729752792566,0.4171,2551.9,2551.8,1.60528517]
[1729752794273,0.4171,2551.9,2551.8,1.60528329]
[1729752794672,1.54670438,2551.9,2551.8,0.47567891]
[1729752796170,1.54670438,2551.9,2551.8,0.47567978]
[1729752796567,1.54670438,2551.9,2551.8,0.35302]
[1729752796977,1.54670438,2551.9,2551.8,0.47568173]
[1729752797274,1.54670438,2551.9,2551.8,0.35302]
[1729752797474,1.54670438,2551.9,2551.8,0.47568182]
[1729752797969,1.54670438,2551.9,2551.8,0.35302]
[1729752798380,1.54670438,2551.9,2551.8,0.47568144]
[1729752799375,1.54670438,2551.9,2551.8,0.35302]
[1729752800677,1.54670438,2551.9,2551.8,0.47568186]
[1729752800880,1.54670438,2551.9,2551.8,0.12266186]
[1729752801180,1.54670438,2551.9,2551.5,1.43515403]
[1729752801181,5.92490614,2551.9,2551.6,0.35304]
[1729752801479,0.4217,2551.8,2551.7,0.12267003]
[1729752801690,1.55130438,2551.8,2551.7,0.12267003]
[1729752801872,4.21656029,2551.8,2551.7,0.12267003]
[1729752802082,4.21656029,2551.8,2551.7,0.47571003]
[1729752802083,5.34616467,2551.8,2551.7,0.47571003]
[1729752803177,5.34616467,2551.8,2551.7,0.12267003]
[1729752803381,5.77526467,2551.8,2551.7,0.12267123]
[1729752803585,5.77526467,2551.8,2551.7,0.35304]
[1729752804381,9.69446467,2551.8,2551.6,0.35304]
[1729752804579,1.12960438,2551.7,2551.6,0.35304]
[1729752805088,5.51936094,2551.7,2551.6,0.35304]
[1729752805378,9.43856094,2551.7,2551.6,0.35305]
[1729752809384,5.51936094,2551.7,2551.6,0.35305]
[1729752815594,4.38975656,2551.7,2551.6,0.35305]
[1729752815785,5.51936094,2551.7,2551.6,0.35305]
[1729752816293,4.38975656,2551.7,2551.6,1.48265438]
[1729752816705,5.51936094,2551.7,2551.6,1.48265438]
[1729752817084,5.51936094,2551.7,2551.6,0.35305]
[1729752817492,5.51936094,2551.7,2551.6,1.48265438]
[1729752819086,0.35306,2551.6,2551.5,0.35306]
[1729752819286,1.92980438,2551.6,2551.5,0.35306]
[1729752819488,6.2634065,2551.6,2551.5,0.35306]
[1729752822604,10.1826065,2551.6,2551.5,0.35306]
[1729752824099,6.2634065,2551.6,2551.5,0.35306]
[1729752824393,10.1826065,2551.6,2551.5,0.35306]
[1729752826894,10.5356565,2551.6,2551.5,0.35306]
[1729752827287,10.1826065,2551.6,2551.5,0.35306]
[1729752827695,10.5356565,2551.6,2551.5,0.35306]
[1729752828801,10.1826065,2551.6,2551.5,0.35306]
[1729752830797,6.2634065,2551.6,2551.5,0.35306]
[1729752832004,6.6164665,2551.6,2551.4,0.35307]
[1729752832200,1.12960438,2551.5,2551.1,1.56260438]
[1729752832405,5.13380212,2551.6,2551.3,0.35309]
[1729752832594,4.49848475,2551.4,2551.3,0.35309]
[1729752832799,1.48268438,2551.4,2551.3,0.35309]
[1729752833013,1.55630438,2551.4,2551.3,0.35309]
[1729752833209,6.05478913,2551.4,2551.3,0.35309]
[1729752833807,6.40786913,2551.4,2551.3,0.35309]
[1729752834104,6.40786913,2551.4,2551.1,0.433]
[1729752834308,1.12960438,2551.2,2551.1,0.78612]
[1729752834806,5.31113487,2551.2,2551.1,0.78612]
[1729752838705,5.31113487,2551.2,2551.1,0.35312]
[1729752839114,5.73963487,2551.2,2551.1,0.35312]
[1729752842704,6.09274487,2551.2,2551.0,3.6038]
[1729752842904,1.12960438,2551.1,2551.0,0.396]
[1729752843112,1.12960438,2551.1,2551.0,0.35313]
[1729752843420,5.60137581,2551.1,2551.0,0.35313]
[1729752843612,5.60137581,2551.1,2550.8,0.8479]
[1729752843820,0.4316,2551.0,2550.9,0.35315]
[1729752844114,4.67596971,2551.0,2550.9,0.35315]
[1729752844307,5.80557409,2551.0,2550.9,0.35315]
[1729752844619,0.35315,2550.9,2550.4,1.02635403]
[1729752844807,1.12960438,2550.5,2550.4,0.35322]
[1729752845511,0.35311,2551.2,2550.4,5.93342438]
[1729752845711,1.12960438,2550.6,2550.5,1.88600438]
[1729752845917,1.12960438,2550.6,2550.5,2.00872298]
[1729752846209,1.12960438,2551.0,2550.7,0.88294]
[1729752846414,0.4059,2551.3,2551.1,0.35311]
[1729752846610,0.4059,2551.3,2550.8,2.12062298]
[1729752846611,0.4059,2551.3,2551.2,0.35311]
[1729752846807,5.89439191,2551.3,2551.2,0.35311]
[1729752852014,6.24748191,2551.3,2551.1,0.35311]
[1729752852314,1.12960438,2551.2,2551.1,0.35311]
[1729752854317,1.12960438,2551.2,2550.9,3.2078]
[1729752854517,1.48273438,2551.0,2550.8,1.22145]
[1729752854716,1.12960438,2550.9,2550.8,1.22146]
[1729752854908,5.88775867,2550.9,2550.8,1.22146]
[1729752855104,5.88775867,2550.9,2550.8,0.4312]
[1729752855105,1.54190438,2550.9,2550.8,0.4312]
[1729752855316,1.54190438,2550.9,2550.5,4.1898]
[1729752855317,2.31055438,2550.9,2550.7,0.35317]
[1729752855518,1.12960438,2550.8,2550.7,0.35317]
[1729752860723,0.4123,2550.9,2550.8,0.35316]
[1729752860920,1.54190438,2550.9,2550.8,0.35316]
[1729752864116,0.4123,2550.9,2550.8,0.35316]
[1729752864318,1.54190438,2550.9,2550.8,0.35316]
[1729752864511,1.54190438,2550.9,2550.8,0.78526]
[1729752865824,1.54190438,2550.9,2550.8,0.35316]
[1729752866626,1.54190438,2550.9,2550.6,0.3958]
[1729752866916,1.12960438,2550.7,2550.6,0.3958]
[1729752867116,1.12960438,2550.7,2550.6,0.87170616]
[1729752867322,1.12960438,2550.7,2550.6,0.47590616]
[1729752867522,1.12960438,2550.7,2550.6,0.35319]
[1729752875131,1.12960438,2550.8,2550.7,0.35317]
[1729752875427,1.54190438,2550.9,2550.8,0.35316]
[1729752875628,1.54190438,2550.9,2550.8,1.15546]
[1729752876934,1.54190438,2550.9,2550.8,0.75556]
[1729752878339,1.54190438,2550.9,2550.8,0.87827002]
[1729752879229,1.54190438,2550.9,2550.8,4.79827002]
[1729752879433,1.54190438,2550.9,2550.8,0.87827002]
[1729752880030,4.866762,2550.9,2550.3,2.15595841]
[1729752880225,1.12960438,2550.6,2550.5,0.3532]
[1729752880423,1.12960438,2550.7,2550.6,0.35319]
[1729752883723,1.55160438,2550.7,2550.6,0.35319]
[1729752884332,5.6615301,2550.7,2550.6,0.35319]
[1729752884727,5.6615301,2550.7,2550.3,0.8144]
[1729752884929,1.12960438,2550.4,2550.3,0.76963]
[1729752889932,1.12960438,2550.4,2550.3,0.35323]
[1729752899545,1.12960438,2550.4,2550.0,5.27159341]
[1729752899546,5.41062556,2550.4,2550.0,3.6307]
[1729752899845,0.8059,2550.3,2550.2,0.35324]
[1729752901145,1.93550438,2550.3,2550.2,0.35324]
[1729752901538,6.38988692,2550.3,2550.2,0.35324]
[1729752902346,4.86218254,2550.3,2550.2,0.35324]
[1729752902549,1.53740438,2550.3,2550.2,0.47597908]
[1729752903252,0.4076,2550.6,2550.2,0.47597908]
[1729752903253,0.4076,2550.6,2550.5,0.3532]
[1729752903544,1.94200438,2550.6,2550.5,0.3532]
[1729752905746,1.53440438,2550.6,2550.5,1.48280438]
[1729752905938,3.2078,2551.5,2550.5,6.49908373]
[1729752906146,3.2078,2551.5,2551.3,1.12960438]
[1729752906147,1.12960438,2551.4,2551.3,1.12960438]
[1729752906451,5.3207653,2551.5,2551.4,0.35308]
[1729752906755,1.12960438,2551.9,2551.8,0.35302]
[1729752906947,1.12960438,2551.9,2551.8,1.48262438]
[1729752907145,3.56078,2552.2,2551.9,0.35301]
[1729752907345,1.12960438,2552.0,2551.9,0.35301]
[1729752907743,1.12960438,2552.0,2551.5,3.6236]
[1729752907946,0.3977,2551.9,2551.7,0.35303]
[1729752908249,2.84738117,2551.9,2551.7,0.35303]
[1729752908446,3.24258117,2551.9,2551.7,0.35303]
[1729752909847,3.24258117,2551.9,2551.5,3.2078]
[1729752910052,3.24258117,2551.9,2551.7,0.35302]
[1729752910252,3.24258117,2551.9,2551.8,0.35302]
[1729752910448,3.24258117,2551.9,2551.5,3.2078]
[1729752910755,7.86556145,2551.9,2551.6,0.35305]
[1729752911754,2.80272117,2551.7,2551.4,0.35307]
[1729752911956,2.44968117,2551.7,2551.5,0.35306]
[1729752912142,4.46599989,2551.6,2551.5,0.35306]
[1729752913952,2.44968117,2551.6,2551.1,4.6479]
[1729752914157,0.4379,2551.5,2551.3,0.35309]
[1729752914355,0.4379,2551.5,2551.1,1.022]
[1729752914655,4.55955187,2551.4,2551.1,1.37511]
[1729752914853,4.98835187,2551.4,2551.1,1.37511]
[1729752915059,4.63527187,2551.4,2551.2,0.3531]
[1729752916956,7.08495304,2551.4,2551.2,0.3531]
[1729752917761,11.00415304,2551.4,2551.2,0.3531]
[1729752918554,3.9192,2551.3,2550.8,3.2078]
[1729752918751,2.80281117,2551.0,2550.8,3.2078]
[1729752918959,0.8476,2550.9,2550.8,3.2078]
[1729752919261,5.74260705,2550.9,2550.8,3.2078]
[1729752920263,5.38945705,2550.9,2550.8,3.2078]
[1729752921060,9.30945705,2550.9,2550.8,3.56096]
[1729752921356,9.30945705,2550.9,2550.7,0.35317]
[1729752921564,5.38945705,2550.9,2550.7,0.35317]
[1729752921857,5.38945705,2550.9,2550.4,0.4104]
[1729752922058,5.38945705,2550.9,2550.7,0.35317]
[1729752922452,5.74260705,2550.9,2550.6,0.35318]
[1729752922653,5.74260705,2550.9,2550.2,4.6436]
[1729752923658,5.74260705,2550.9,2550.4,3.2078]
[1729752924050,5.38945705,2550.9,2550.7,0.35317]
[1729752925252,5.74260705,2550.9,2550.7,0.35317]
[1729752925754,6.36968117,2550.8,2550.1,0.4053]
[1729752925964,2.80289117,2550.5,2550.2,0.35323]
[1729752926154,0.4168,2550.4,2550.2,0.35323]
[1729752926461,5.0305441,2550.4,2550.2,0.35323]
[1729752927054,5.3837641,2550.4,2550.2,0.35323]
[1729752927247,5.3837641,2550.4,2549.9,3.2078]
[1729752927248,5.0305441,2550.4,2549.9,3.2078]
[1729752927452,5.0305441,2550.4,2550.0,0.35327]
[1729752927648,5.0305441,2550.4,2549.9,3.2078]
[1729752928259,5.0305441,2550.4,2550.2,0.35324]
[1729752928953,0.35323,2550.3,2550.1,0.35325]
[1729752929158,0.35328,2550.0,2549.7,0.3533]
[1729752929456,5.22155386,2549.9,2549.8,0.3533]
[1729752930261,5.22155386,2549.9,2549.4,0.8297]
[1729752930463,5.22155386,2549.9,2549.7,0.3533]
[1729752930853,5.62645386,2549.9,2549.7,0.3533]
[1729752931859,5.97974386,2549.9,2549.7,0.3533]
[1729752932452,5.62645386,2549.9,2549.7,0.3533]
[1729752933255,5.62645386,2549.9,2549.8,0.3533]
[1729752940760,4.80085386,2549.9,2549.8,0.3533]
[1729752941063,4.38935386,2549.9,2549.8,0.3533]
[1729752941468,4.2291609,2550.0,2549.7,0.3982]
[1729752941665,6.37128117,2550.0,2549.7,0.35331]
[1729752941969,4.70179,2549.9,2549.7,0.35331]
[1729752942164,0.8394,2549.8,2549.7,0.35331]
[1729752942462,5.03842579,2549.8,2549.7,0.35331]
[1729752942665,8.96002579,2549.8,2549.7,0.35331]
[1729752942865,8.96002579,2549.8,2549.6,0.35333]
[1729752943071,5.03842579,2549.8,2549.6,0.35333]
[1729752943270,5.39172579,2549.8,2549.6,0.35333]
[1729752944367,5.39172579,2549.8,2549.4,0.77704]
[1729752944368,2.44968117,2549.7,2549.4,0.77704]
[1729752944563,2.44968117,2549.5,2549.4,0.4237]
[1729752944768,2.80302117,2549.5,2549.3,0.35336]
[1729752944963,0.3988,2549.4,2549.3,0.35336]
[1729752945166,1.15446,2549.4,2549.0,0.3956]
[1729752945366,2.88178117,2549.3,2549.2,0.35338]
[1729752945761,7.02866393,2549.3,2549.1,0.35339]
[1729752945964,0.35339,2549.2,2548.9,0.35341]
[1729752946268,6.94996393,2549.1,2548.7,0.8496]
[1729752946467,6.94996393,2549.1,2548.9,0.35342]
[1729752946665,0.426,2549.0,2548.9,0.35342]
[1729752947067,3.2078,2549.2,2549.1,0.3534]
[1729752947565,3.2078,2549.2,2549.0,0.3534]
[1729752947776,7.52277969,2549.2,2549.1,0.3534]
[1729752948072,7.94877969,2549.2,2549.0,0.3534]
[1729752948261,7.94877969,2549.2,2548.8,3.2078]
[1729752948468,7.94877969,2549.2,2549.1,0.3534]
[1729752949765,4.74097969,2549.2,2549.1,0.3534]
[1729752950275,4.74097969,2549.2,2549.0,0.35341]
[1729752951069,5.09435969,2549.2,2549.0,0.35341]
[1729752951366,4.74097969,2549.2,2549.0,0.35341]
[1729752952176,2.44968117,2549.1,2548.8,3.2078]
[1729752952477,4.0825076,2549.0,2548.9,0.35342]
[1729752953574,4.0825076,2549.0,2548.7,0.8365]
[1729752953879,4.0825076,2549.0,2548.9,0.35342]
[1729752954574,4.4359176,2549.0,2548.8,0.35343]
[1729752954776,4.0825076,2549.0,2548.8,0.35343]
[1729752955082,0.3967,2548.9,2548.8,0.35343]
[1729752955378,4.54741605,2548.9,2548.8,0.35343]
[1729752955578,4.54741605,2548.9,2548.1,4.09161]
[1729752955579,6.99709722,2548.9,2548.1,4.09161]
[1729752955766,2.44968117,2548.5,2548.4,0.74949]
[1729752956477,6.7267925,2548.5,2548.4,0.74949]
[1729752956667,4.27711133,2548.5,2548.4,0.74949]
[1729752957176,2.87208117,2548.6,2548.5,0.35348]
[1729752957383,0.3981,2548.8,2548.7,0.35345]
[1729752957673,4.11511724,2548.6,2548.5,0.35348]
[1729752957867,4.442348,2548.7,2548.6,0.35347]
[1729752958176,2.44968117,2548.8,2548.7,0.35345]
[1729752958579,6.89202917,2548.8,2548.7,0.35345]
[1729752958975,3.2078,2549.0,2548.5,0.41]
[1729752959176,3.2078,2549.0,2548.9,0.35342]
[1729752959577,7.30247795,2549.0,2548.9,0.35342]
[1729752960483,4.09467795,2549.0,2548.9,0.35342]
[1729752962497,5.65748117,2549.3,2549.2,0.35338]
[1729752962785,5.65748117,2549.3,2548.8,0.8334]
[1729752962786,4.38847702,2549.2,2549.1,0.35339]
[1729752963087,2.44968117,2549.3,2549.1,0.35339]
[1729752963381,4.38847702,2549.2,2549.1,0.35339]
[1729752964884,0.3953,2549.4,2549.3,0.35337]
[1729752965186,4.32804452,2549.3,2549.1,0.3534]
[1729752965389,3.73870913,2549.3,2549.2,0.79158]
[1729752965587,2.44968117,2549.7,2549.6,0.35333]
[1729752965983,6.84820293,2549.7,2549.6,0.35333]
[1729752966181,4.39852176,2549.7,2549.6,0.35333]
[1729752966684,4.39852176,2549.8,2549.7,0.35331]
[1729752966884,5.65748117,2549.9,2549.7,0.35331]
[1729752967076,4.35243788,2549.8,2549.7,0.35331]
[1729752968485,4.35243788,2549.8,2549.3,3.2078]
[1729752968787,4.35243788,2549.8,2549.7,0.35331]
[1729752969294,4.35243788,2549.8,2549.6,0.35332]
[1729752969492,0.396,2549.7,2549.6,0.35332]
[1729752969687,0.396,2549.7,2549.6,0.75232]
[1729752969887,4.66609166,2549.7,2549.6,0.75232]
[1729752970390,2.44968117,2549.9,2549.8,0.3533]
[1729752970780,6.98115468,2549.9,2549.8,0.3533]
[1729752970984,4.53147351,2549.9,2549.8,0.3533]
[1729752971287,4.53147351,2549.9,2549.7,0.4195]
[1729752971288,4.53147351,2550.0,2549.7,0.4195]
[1729752971486,4.53147351,2550.0,2549.9,0.35329]
[1729752971793,0.4086,2550.2,2549.8,3.2078]
[1729752972094,4.34786288,2550.1,2550.0,0.35326]
[1729752972485,4.34786288,2550.1,2549.8,3.2078]
[1729752972689,4.34786288,2550.1,2549.9,0.35328]
[1729752973687,4.34786288,2550.1,2549.9,3.56108]
[1729752973688,6.79754405,2550.1,2549.9,3.56108]
[1729752973895,7.63924405,2550.1,2549.9,3.56108]
[1729752974483,7.99250405,2550.1,2549.8,3.56109]
[1729752974793,7.99250405,2550.1,2549.8,3.2078]
[1729752974794,7.63924405,2550.1,2549.8,3.2078]
[1729752974994,7.99250405,2550.1,2549.8,3.56109]
[1729752975499,7.63924405,2550.1,2549.9,0.35328]
[1729752976389,4.34786288,2550.1,2549.8,3.2078]
[1729752976586,0.4086,2550.2,2549.8,3.2078]
[1729752976587,0.4086,2550.2,2550.1,0.35326]
[1729752982098,47.22431117,2550.4,2550.1,0.35326]
[1729752982390,4.39860631,2550.2,2550.1,0.35325]
[1729752982792,0.4068,2550.3,2549.8,3.2078]
[1729752982992,0.4068,2550.3,2550.1,0.35325]
[1729752983301,4.35922725,2550.2,2550.1,0.35325]
[1729752983599,4.35922725,2550.2,2550.0,0.35326]
[1729752984292,4.35922725,2550.2,2549.8,3.2078]
[1729752984489,4.35922725,2550.2,2550.1,0.35326]
[1729752986892,4.35922725,2550.2,2550.1,4.27486]
[1729752987193,3.2078,2550.4,2550.3,0.35323]
[1729752987591,0.437,2550.7,2550.3,4.80387]
[1729752987791,2.44968117,2551.0,2550.3,4.80387]
[1729752987792,3.62302117,2551.0,2550.7,0.35317]
[1729752988100,4.267801,2550.9,2550.7,0.35317]
[1729752988892,4.620951,2550.9,2550.6,0.35318]
[1729752989096,4.267801,2550.9,2550.7,0.35316]
[1729752989603,4.267801,2550.9,2550.4,3.2078]
[1729752989804,4.267801,2550.9,2550.8,0.35316]
[1729752990906,0.4096,2551.0,2550.9,0.35315]
[1729752991104,3.2078,2551.1,2551.0,0.35313]
[1729752991302,3.2078,2552.4,2551.6,0.35304]
[1729752991505,0.4265,2552.3,2552.2,0.35297]
[1729752991708,0.4265,2552.3,2551.9,3.2078]
[1729752991709,4.38346273,2552.1,2551.9,3.2078]
[1729752991905,0.49552341,2552.3,2551.9,3.2078]
[1729752992213,4.53655913,2552.1,2551.9,3.2078]
[1729752992503,0.35298,2552.1,2551.9,3.2078]
[1729752992707,3.21417117,2552.0,2551.9,3.2078]
[1729752992897,0.35302,2551.9,2551.6,3.2078]
[1729752993102,2.85138117,2551.8,2551.6,3.2078]
[1729752993306,7.57278497,2551.8,2551.6,3.2078]
[1729752994304,5.1231038,2551.8,2551.6,3.2078]
[1729752995305,5.1231038,2551.8,2551.6,3.56085]
[1729752997317,40.8,2551.7,2551.6,3.56085]
[1729752997719,45.23198392,2551.7,2551.6,3.56085]
[1729752997914,49.15118392,2551.7,2551.3,0.35308]
[1729752998121,3.2078,2551.5,2550.9,0.8303]
[1729752998328,3.2078,2551.5,2550.8,3.2078]
[1729752998329,0.4376,2551.4,2551.2,0.3531]
[1729752998518,4.98298091,2551.4,2551.2,0.3531]
[1729752999218,4.98298091,2551.4,2550.8,3.2078]
[1729752999523,5.33606091,2551.4,2551.0,0.35313]
[1729752999717,4.98298091,2551.4,2551.0,0.35313]
[1729753000127,5.33606091,2551.4,2551.0,0.35313]
[1729753000320,4.98298091,2551.4,2550.8,3.2078]
[1729753000521,4.98298091,2551.4,2551.1,0.35311]
[1729753000825,4.98298091,2551.4,2550.8,3.2078]
[1729753001024,5.33606091,2551.4,2551.0,0.35313]
[1729753001215,0.4101,2551.3,2551.0,0.35313]
[1729753001421,0.4096,2551.2,2551.0,0.35313]
[1729753001626,4.75906327,2551.2,2551.0,0.35313]
[1729753002825,40.8,2551.1,2551.0,0.35313]
[1729753003324,4.41388039,2551.1,2551.0,0.35313]
[1729753007829,4.41388039,2551.1,2550.7,3.2078]
[1729753008028,0.4213,2551.0,2550.9,0.35315]
[1729753008327,4.89661313,2551.0,2550.9,0.35315]
[1729753011030,4.89661313,2551.0,2550.9,2.80283117]
[1729753011225,4.89661313,2551.0,2550.9,0.35315]
[1729753028243,4.89661313,2551.0,2550.9,1.48401405]
[1729753033947,0.4101,2551.3,2550.9,6.1817281]
[1729753034147,0.4101,2551.3,2551.2,1.48397405]
[1729753035154,3.2078,2551.5,2551.2,5.05086405]
[1729753035459,3.2078,2551.5,2551.0,0.8523]
[1729753035460,4.33866405,2551.5,2551.4,1.48394405]
[1729753035747,4.52917755,2551.4,2551.1,0.4356]
[1729753035952,4.52917755,2551.4,2551.3,0.35309]
[1729753036248,3.2078,2551.5,2551.3,1.13086405]
[1729753036444,3.2078,2551.5,2551.4,1.48394405]
[1729753036644,3.2078,2551.5,2551.4,0.35308]
[1729753036845,7.71991135,2551.5,2551.4,0.35308]
[1729753039955,8.8507754,2551.5,2551.4,0.35308]
[1729753040754,8.8507754,2551.5,2551.0,0.4148]
[1729753040949,0.35309,2551.3,2551.1,0.47579837]
[1729753041154,1.96316405,2551.2,2551.1,0.35311]
[1729753041348,47.5902191,2551.2,2551.1,0.47580368]
[1729753041848,47.5902191,2551.2,2551.1,0.35311]
[1729753042053,47.5902191,2551.2,2551.1,0.47580549]
[1729753042252,6.7902191,2551.2,2551.1,0.47580549]
[1729753042551,7.1433291,2551.2,2551.1,0.12269549]
[1729753042747,7.1433291,2551.2,2551.1,0.12269847]
[1729753043158,7.1433291,2551.2,2551.1,0.12269882]
[1729753043361,6.7902191,2551.2,2551.1,0.47581882]
[1729753043548,6.7902191,2551.2,2551.1,0.12269882]
[1729753043549,7.1433291,2551.2,2551.1,0.12269882]
[1729753043964,0.35313,2551.0,2550.8,1.48401405]
[1729753044149,0.35313,2551.0,2550.7,1.079]
[1729753044150,0.35313,2551.0,2550.9,0.12270679]
[1729753044355,5.66848943,2550.9,2550.7,2.20986405]
[1729753044561,1.13086405,2550.9,2550.8,0.47587126]
[1729753044762,1.48401405,2550.9,2550.8,1.60673531]
[1729753044963,5.19420006,2550.9,2550.8,0.47587126]
[1729753045356,4.84105006,2550.9,2550.8,0.35316]
[1729753045968,4.84105006,2550.9,2550.8,0.47586819]
[1729753046453,3.71018601,2550.9,2550.8,1.60673224]
[1729753047356,3.71018601,2550.9,2550.8,0.12270819]
[1729753047357,5.19420006,2550.9,2550.8,0.12270819]
[1729753047563,0.35316,2550.8,2550.6,3.2078]
[1729753047761,1.56116405,2550.7,2550.6,4.69184405]
[1729753047964,5.93323516,2550.7,2550.6,4.8145622]
[1729753048264,4.80237111,2550.7,2550.6,4.69184405]
[1729753048762,4.80237111,2550.7,2550.6,4.81456258]
[1729753049158,4.80237111,2550.7,2550.6,4.81456183]
[1729753049354,4.80237111,2550.7,2550.6,4.69184405]
[1729753049958,4.80237111,2550.7,2550.6,4.81456057]
[1729753050163,1.13086405,2551.1,2550.7,0.35317]
[1729753050363,0.4372,2551.0,2550.9,1.48399405]
[1729753050559,4.8961813,2551.0,2550.9,1.48399405]
[1729753051066,6.02704535,2551.0,2550.9,1.48399405]
[1729753052264,6.02704535,2551.0,2550.9,1.13086405]
[1729753053356,6.38017535,2551.0,2550.9,1.13086405]
[1729753053561,6.38017535,2551.0,2550.8,0.35315]
[1729753053768,1.13086405,2550.9,2550.8,0.35315]
[1729753055858,1.56806405,2551.0,2550.9,0.35315]
[1729753056159,6.11557139,2551.0,2550.9,0.35315]
[1729753056963,3.2078,2552.8,2551.0,3.92]
[1729753057164,0.4164,2552.6,2552.5,1.13086405]
[1729753057471,4.70902168,2552.6,2552.3,1.13086405]
[1729753057675,1.54726405,2552.6,2552.3,0.35294]
[1729753057965,4.29262168,2552.5,2552.3,0.35294]
[1729753058168,4.29262168,2552.5,2552.4,0.35294]
[1729753058564,4.29262168,2552.5,2552.4,3.56074]
[1729753058865,4.29262168,2552.5,2552.4,3.2078]
[1729753059067,5.42348573,2552.5,2552.4,3.2078]